[Event "Titled Tuesday Blitz July 27 2021"]
[White "Moroni, Luca Jr"]
[Black "Grigorjev, Iljya"]
[WhiteFideId "865834"]
[BlackFideId "24159565"]
[WhiteElo "2491"]
[BlackElo "2142"]
[Result "0-1"]
[Round "07"]
[TimeControl "180+1"]
[Date "2021.07.27"]
[WhiteClock "0:00:06"]
[BlackClock "0:00:07"]

1. d4 {[%clk 0:03:00]}  Nf6 {[%clk 0:03:00]} 2. c4 {[%clk 0:03:00]}  g6 {[%clk 0:03:00]} 3. Nc3 {[%clk 0:02:59]}  d5 {[%clk 0:03:01]} 4. cxd5 {[%clk 0:02:59]}  Nxd5 {[%clk 0:03:02]} 5. e4 {[%clk 0:02:59]}  Nxc3 {[%clk 0:03:02]} 6. bxc3 {[%clk 0:03:00]}  Bg7 {[%clk 0:03:03]} 7. Bb5+ {[%clk 0:03:00]}  c6 {[%clk 0:02:53]} 8. Ba4 {[%clk 0:03:00]}  b5 {[%clk 0:02:54]} 9. Bb3 {[%clk 0:03:00]}  b4 {[%clk 0:02:53]} 10. Ne2 {[%clk 0:02:53]}  bxc3 {[%clk 0:02:48]} 11. Be3 {[%clk 0:02:53]}  Ba6 {[%clk 0:02:47]} 12. Rc1 {[%clk 0:02:48]}  O-O {[%clk 0:02:38]} 13. Rxc3 {[%clk 0:02:32]}  Nd7 {[%clk 0:02:22]} 14. Rc1 {[%clk 0:01:55]}  c5 {[%clk 0:01:34]} 15. dxc5 {[%clk 0:01:46]}  Ne5 {[%clk 0:01:34]} 16. O-O {[%clk 0:01:24]}  Qxd1 {[%clk 0:01:22]} 17. Bxd1 {[%clk 0:01:25]}  Rfd8 {[%clk 0:01:22]} 18. Rc2 {[%clk 0:00:44]}  Bd3 {[%clk 0:01:21]} 19. Rc1 {[%clk 0:00:37]}  Bxe4 {[%clk 0:01:16]} 20. Nc3 {[%clk 0:00:32]}  Bc6 {[%clk 0:01:02]} 21. Be2 {[%clk 0:00:29]}  Nd3 {[%clk 0:00:58]} 22. Rc2 {[%clk 0:00:28]}  Rab8 {[%clk 0:00:44]} 23. h3 {[%clk 0:00:22]}  a5 {[%clk 0:00:42]} 24. Rd1 {[%clk 0:00:18]}  Nb4 {[%clk 0:00:39]} 25. Rxd8+ {[%clk 0:00:19]}  Rxd8 {[%clk 0:00:40]} 26. Rc1 {[%clk 0:00:20]}  a4 {[%clk 0:00:32]} 27. Bb5 {[%clk 0:00:19]}  Bxc3 {[%clk 0:00:25]} 28. Bxc6 {[%clk 0:00:20]}  Bb2 {[%clk 0:00:24]} 29. Rb1 {[%clk 0:00:19]}  a3 {[%clk 0:00:24]} 30. Bb5 {[%clk 0:00:16]}  Nxa2 {[%clk 0:00:24]} 31. Bc4 {[%clk 0:00:06]}  Nc3 {[%clk 0:00:22]} 32. Re1 {[%clk 0:00:03]}  e6 {[%clk 0:00:13]} 33. Bg5 {[%clk 0:00:03]}  Rc8 {[%clk 0:00:13]} 34. Be7 {[%clk 0:00:03]}  Kg7 {[%clk 0:00:09]} 35. Bd6 {[%clk 0:00:04]}  Rc6 {[%clk 0:00:08]} 36. Re3 {[%clk 0:00:03]}  a2 {[%clk 0:00:04]} 37. Bxa2 {[%clk 0:00:01]}  Nxa2 {[%clk 0:00:05]} 38. Re2 {[%clk 0:00:02]}  Bd4 {[%clk 0:00:03]} 39. Rxa2 {[%clk 0:00:02]}  Bxc5 {[%clk 0:00:04]} 40. Be5+ {[%clk 0:00:03]}  f6 {[%clk 0:00:03]} 41. Bg3 {[%clk 0:00:03]}  Be7 {[%clk 0:00:03]} 42. Re2 {[%clk 0:00:04]}  Kf7 {[%clk 0:00:03]} 43. Kh2 {[%clk 0:00:04]}  h5 {[%clk 0:00:04]} 44. h4 {[%clk 0:00:04]}  e5 {[%clk 0:00:04]} 45. Kh3 {[%clk 0:00:04]}  Rc4 {[%clk 0:00:03]} 46. f3 {[%clk 0:00:04]}  Ke6 {[%clk 0:00:03]} 47. Bf2 {[%clk 0:00:04]}  f5 {[%clk 0:00:03]} 48. Ra2 {[%clk 0:00:04]}  Bd6 {[%clk 0:00:02]} 49. Ra6 {[%clk 0:00:05]}  Rc7 {[%clk 0:00:02]} 50. Be1 {[%clk 0:00:05]}  Rd7 {[%clk 0:00:03]} 51. Bb4 {[%clk 0:00:05]}  Ke7 {[%clk 0:00:03]} 52. Bxd6+ {[%clk 0:00:04]}  Rxd6 {[%clk 0:00:04]} 53. Ra5 {[%clk 0:00:05]}  Kf6 {[%clk 0:00:04]} 54. Kg3 {[%clk 0:00:05]}  Re6 {[%clk 0:00:03]} 55. Rb5 {[%clk 0:00:06]}  e4 {[%clk 0:00:03]} 56. fxe4 {[%clk 0:00:06]}  fxe4 {[%clk 0:00:03]} 57. Kf2 {[%clk 0:00:06]}  e3+ {[%clk 0:00:02]} 58. Ke2 {[%clk 0:00:06]}  Re4 {[%clk 0:00:03]} 59. g3 {[%clk 0:00:05]}  Rg4 {[%clk 0:00:04]} 60. Rb6+ {[%clk 0:00:05]}  Kf5 {[%clk 0:00:03]} 61. Rb5+ {[%clk 0:00:05]}  Ke6 {[%clk 0:00:02]} 62. Rb6+ {[%clk 0:00:05]}  Ke5 {[%clk 0:00:02]} 63. Rb5+ {[%clk 0:00:05]}  Kd6 {[%clk 0:00:02]} 64. Kxe3 {[%clk 0:00:03]}  Rxg3+ {[%clk 0:00:03]} 65. Kf2 {[%clk 0:00:03]}  Rg4 {[%clk 0:00:03]} 66. Kf3 {[%clk 0:00:03]}  Ke7 {[%clk 0:00:01]} 67. Rb6 {[%clk 0:00:02]}  Kf7 {[%clk 0:00:02]} 68. Rb7+ {[%clk 0:00:02]}  Kf6 {[%clk 0:00:02]} 69. Rb6+ {[%clk 0:00:02]}  Kg7 {[%clk 0:00:03]} 70. Rb7+ {[%clk 0:00:03]}  Kh6 {[%clk 0:00:03]} 71. Rb6 {[%clk 0:00:04]}  Rxh4 {[%clk 0:00:04]} 72. Kg3 {[%clk 0:00:04]}  Rg4+ {[%clk 0:00:04]} 73. Kh3 {[%clk 0:00:05]}  Rf4 {[%clk 0:00:04]} 74. Rb5 {[%clk 0:00:05]}  Rf5 {[%clk 0:00:05]} 75. Rb8 {[%clk 0:00:05]}  Kg5 {[%clk 0:00:05]} 76. Kg3 {[%clk 0:00:05]}  Rd5 {[%clk 0:00:06]} 77. Rb3 {[%clk 0:00:05]}  Kf5 {[%clk 0:00:06]} 78. Kh3 {[%clk 0:00:05]}  g5 {[%clk 0:00:07]} 79. Rf3+ {[%clk 0:00:05]}  Kg6 {[%clk 0:00:07]} 80. Ra3 {[%clk 0:00:06]}  Rf5 {[%clk 0:00:06]} 81. Ra6+ {[%clk 0:00:06]}  Rf6 {[%clk 0:00:07]} 82. Ra3 {[%clk 0:00:07]}  h4 {[%clk 0:00:06]} 83. Kg4 {[%clk 0:00:06]}  Rf4+ {[%clk 0:00:07]} 84. Kh3 {[%clk 0:00:06]}  Kh5 {[%clk 0:00:07]} 85. Ra5 {[%clk 0:00:07]}  Rc4 {[%clk 0:00:08]} 86. Rb5 {[%clk 0:00:06]}  Rc3+ {[%clk 0:00:08]} 87. Kg2 {[%clk 0:00:06]}  Re3 {[%clk 0:00:08]} 88. Ra5 {[%clk 0:00:06]}  Kg4 {[%clk 0:00:08]} 89. Ra4+ {[%clk 0:00:06]}  Kf5 {[%clk 0:00:09]} 90. Ra5+ {[%clk 0:00:07]}  Re5 {[%clk 0:00:10]} 91. Ra4 {[%clk 0:00:07]}  Re2+ {[%clk 0:00:08]} 92. Kf3 {[%clk 0:00:06]}  Re5 {[%clk 0:00:07]} 93. Rb4 {[%clk 0:00:06]}  Rc5 {[%clk 0:00:05]} 94. Ra4 {[%clk 0:00:05]}  Rc3+ {[%clk 0:00:05]} 95. Kg2 {[%clk 0:00:05]}  Rd3 {[%clk 0:00:04]} 96. Rb4 {[%clk 0:00:06]}  g4 {[%clk 0:00:04]} 97. Rb5+ {[%clk 0:00:04]}  Ke4 {[%clk 0:00:04]} 98. Rb4+ {[%clk 0:00:04]}  Rd4 {[%clk 0:00:05]} 99. Rb2 {[%clk 0:00:03]}  Kf4 {[%clk 0:00:04]} 100. Rf2+ {[%clk 0:00:03]}  Kg5 {[%clk 0:00:05]} 101. Rb2 {[%clk 0:00:03]}  Rd5 {[%clk 0:00:05]} 102. Rc2 {[%clk 0:00:03]}  h3+ {[%clk 0:00:05]} 103. Kh2 {[%clk 0:00:03]}  Kh4 {[%clk 0:00:05]} 104. Rc1 {[%clk 0:00:04]}  g3+ {[%clk 0:00:05]} 105. Kh1 {[%clk 0:00:04]}  Rd4 {[%clk 0:00:05]} 106. Rb1 {[%clk 0:00:04]}  Kg4 {[%clk 0:00:06]} 107. Rc1 {[%clk 0:00:04]}  Kf3 {[%clk 0:00:06]} 108. Rf1+ {[%clk 0:00:04]}  Ke2 {[%clk 0:00:07]} 109. Kg1 {[%clk 0:00:02]}  Rd1 {[%clk 0:00:05]} 110. Rxd1 {[%clk 0:00:02]}  Kxd1 {[%clk 0:00:06]} 111. Kf1 {[%clk 0:00:03]}  Kd2 {[%clk 0:00:06]} 112. Kg1 {[%clk 0:00:03]}  Ke3 {[%clk 0:00:06]} 113. Kf1 {[%clk 0:00:04]}  Kf3 {[%clk 0:00:06]} 114. Kg1 {[%clk 0:00:05]}  h2+ {[%clk 0:00:06]} 115. Kh1 {[%clk 0:00:05]}  g2+ {[%clk 0:00:06]} 116. Kxh2 {[%clk 0:00:06]}  Kf2 {[%clk 0:00:07]} 0-1


[Site "https://www.chess.com"]

[Event "Titled Tuesday Blitz July 27 2021"]
[White "Muradli, Mahammad"]
[Black "Nakamura, Hikaru"]
[WhiteFideId "13409301"]
[BlackFideId "2016192"]
[WhiteElo "2482"]
[BlackElo "2900"]
[Result "0-1"]
[Round "07"]
[TimeControl "180+1"]
[Date "2021.07.27"]
[WhiteClock "0:00:01"]
[BlackClock "0:00:05"]

1. d4 {[%clk 0:02:59]}  g6 {[%clk 0:02:56]} 2. Nf3 {[%clk 0:02:59]}  Bg7 {[%clk 0:02:56]} 3. c3 {[%clk 0:03:00]}  d6 {[%clk 0:02:56]} 4. Bg5 {[%clk 0:02:56]}  Nf6 {[%clk 0:02:55]} 5. Nbd2 {[%clk 0:02:52]}  h6 {[%clk 0:02:53]} 6. Bh4 {[%clk 0:02:51]}  g5 {[%clk 0:02:53]} 7. Bg3 {[%clk 0:02:52]}  Nh5 {[%clk 0:02:53]} 8. e3 {[%clk 0:02:51]}  e6 {[%clk 0:02:53]} 9. Bd3 {[%clk 0:02:47]}  Nd7 {[%clk 0:02:53]} 10. Qe2 {[%clk 0:02:39]}  a6 {[%clk 0:02:51]} 11. a4 {[%clk 0:02:36]}  b6 {[%clk 0:02:51]} 12. Be4 {[%clk 0:02:09]}  Ra7 {[%clk 0:02:37]} 13. a5 {[%clk 0:02:01]}  b5 {[%clk 0:02:35]} 14. O-O {[%clk 0:01:50]}  O-O {[%clk 0:02:31]} 15. b4 {[%clk 0:01:43]}  Nxg3 {[%clk 0:02:29]} 16. hxg3 {[%clk 0:01:44]}  c5 {[%clk 0:02:30]} 17. Rad1 {[%clk 0:01:31]}  Rc7 {[%clk 0:02:27]} 18. Bb1 {[%clk 0:00:57]}  Qe7 {[%clk 0:02:22]} 19. Qd3 {[%clk 0:00:54]}  Nf6 {[%clk 0:01:52]} 20. e4 {[%clk 0:00:40]}  cxd4 {[%clk 0:01:47]} 21. cxd4 {[%clk 0:00:37]}  e5 {[%clk 0:01:47]} 22. d5 {[%clk 0:00:28]}  Bg4 {[%clk 0:01:37]} 23. Qe3 {[%clk 0:00:24]}  Rfc8 {[%clk 0:01:36]} 24. Qb6 {[%clk 0:00:23]}  Ra8 {[%clk 0:01:13]} 25. Rc1 {[%clk 0:00:20]}  Rb7 {[%clk 0:01:13]} 26. Qe3 {[%clk 0:00:18]}  Bd7 {[%clk 0:01:10]} 27. Rc3 {[%clk 0:00:15]}  Qd8 {[%clk 0:00:56]} 28. Rfc1 {[%clk 0:00:15]}  Rbb8 {[%clk 0:00:57]} 29. Nh2 {[%clk 0:00:12]}  g4 {[%clk 0:00:57]} 30. Nhf1 {[%clk 0:00:12]}  h5 {[%clk 0:00:57]} 31. Qd3 {[%clk 0:00:07]}  Bh6 {[%clk 0:00:57]} 32. Ne3 {[%clk 0:00:08]}  Rc8 {[%clk 0:00:57]} 33. Ndf1 {[%clk 0:00:08]}  Ne8 {[%clk 0:00:50]} 34. R1c2 {[%clk 0:00:07]}  Rxc3 {[%clk 0:00:50]} 35. Rxc3 {[%clk 0:00:08]}  Bg5 {[%clk 0:00:46]} 36. Nf5 {[%clk 0:00:07]}  Bxf5 {[%clk 0:00:40]} 37. exf5 {[%clk 0:00:08]}  Rc8 {[%clk 0:00:40]} 38. Rc6 {[%clk 0:00:08]}  Rxc6 {[%clk 0:00:36]} 39. dxc6 {[%clk 0:00:09]}  Nc7 {[%clk 0:00:35]} 40. f6 {[%clk 0:00:07]}  Qxf6 {[%clk 0:00:35]} 41. Qh7+ {[%clk 0:00:06]}  Kf8 {[%clk 0:00:35]} 42. Qxh5 {[%clk 0:00:07]}  d5 {[%clk 0:00:20]} 43. Qxg4 {[%clk 0:00:07]}  Qe7 {[%clk 0:00:20]} 44. Qc8+ {[%clk 0:00:07]}  Qd8 {[%clk 0:00:18]} 45. Qf5 {[%clk 0:00:07]}  Qf6 {[%clk 0:00:18]} 46. Qc8+ {[%clk 0:00:05]}  Qd8 {[%clk 0:00:18]} 47. Qg4 {[%clk 0:00:05]}  e4 {[%clk 0:00:13]} 48. Ne3 {[%clk 0:00:04]}  Bxe3 {[%clk 0:00:12]} 49. fxe3 {[%clk 0:00:05]}  Qd6 {[%clk 0:00:11]} 50. Qc8+ {[%clk 0:00:06]}  Ke7 {[%clk 0:00:12]} 51. Qb7 {[%clk 0:00:06]}  f5 {[%clk 0:00:09]} 52. Kh2 {[%clk 0:00:05]}  Qh6+ {[%clk 0:00:09]} 53. Kg1 {[%clk 0:00:06]}  Qxe3+ {[%clk 0:00:10]} 54. Kh2 {[%clk 0:00:07]}  Qh6+ {[%clk 0:00:10]} 55. Kg1 {[%clk 0:00:07]}  Kd6 {[%clk 0:00:10]} 56. Qc8 {[%clk 0:00:03]}  Kxc6 {[%clk 0:00:09]} 57. Ba2 {[%clk 0:00:03]}  Qc1+ {[%clk 0:00:10]} 58. Kh2 {[%clk 0:00:03]}  Qh6+ {[%clk 0:00:10]} 59. Kg1 {[%clk 0:00:03]}  Qd6 {[%clk 0:00:11]} 60. Qb8 {[%clk 0:00:02]}  Qxb4 {[%clk 0:00:10]} 61. Qb6+ {[%clk 0:00:03]}  Kd7 {[%clk 0:00:11]} 62. Kh2 {[%clk 0:00:04]}  Qd6 {[%clk 0:00:10]} 63. Qd4 {[%clk 0:00:04]}  f4 {[%clk 0:00:07]} 64. gxf4 {[%clk 0:00:04]}  Qxf4+ {[%clk 0:00:08]} 65. Kh3 {[%clk 0:00:03]}  Qd6 {[%clk 0:00:09]} 66. g3 {[%clk 0:00:02]}  Kc6 {[%clk 0:00:08]} 67. Kg2 {[%clk 0:00:02]}  Qc5 {[%clk 0:00:08]} 68. Qf6+ {[%clk 0:00:02]}  Kb7 {[%clk 0:00:08]} 69. Kh3 {[%clk 0:00:02]}  b4 {[%clk 0:00:08]} 70. Bb3 {[%clk 0:00:02]}  Qxa5 {[%clk 0:00:07]} 71. Qd6 {[%clk 0:00:02]}  Qb5 {[%clk 0:00:07]} 72. Kh4 {[%clk 0:00:03]}  a5 {[%clk 0:00:08]} 73. Bd1 {[%clk 0:00:03]}  b3 {[%clk 0:00:08]} 74. Bg4 {[%clk 0:00:03]}  b2 {[%clk 0:00:07]} 75. Qd8 {[%clk 0:00:02]}  b1=Q {[%clk 0:00:06]} 76. Qc8+ {[%clk 0:00:03]}  Kb6 {[%clk 0:00:06]} 77. Qb8+ {[%clk 0:00:02]}  Kc6 {[%clk 0:00:05]} 78. Qc8 {[%clk 0:00:02]}  Qh1+ {[%clk 0:00:03]} 79. Kg5 {[%clk 0:00:02]}  Qh7 {[%clk 0:00:04]} 80. Bf5 {[%clk 0:00:01]}  d4 {[%clk 0:00:05]} 0-1


[Site "https://www.chess.com"]

[Event "Titled Tuesday Blitz July 27 2021"]
[White "Nguyen, Hong Ngoc"]
[Black "Arabidze, Meri"]
[WhiteFideId "12403083"]
[BlackFideId "13604040"]
[WhiteElo "1830"]
[BlackElo "2432"]
[Result "0-1"]
[Round "07"]
[TimeControl "180+1"]
[Date "2021.07.27"]
[WhiteClock "0:00:08"]
[BlackClock "0:00:27"]

1. e4 {[%clk 0:03:00]}  c5 {[%clk 0:03:00]} 2. Nc3 {[%clk 0:02:59]}  e6 {[%clk 0:03:00]} 3. g3 {[%clk 0:02:59]}  Nc6 {[%clk 0:03:00]} 4. Bg2 {[%clk 0:02:59]}  d6 {[%clk 0:02:58]} 5. d3 {[%clk 0:02:58]}  g6 {[%clk 0:02:58]} 6. Be3 {[%clk 0:02:58]}  Bg7 {[%clk 0:02:58]} 7. Qd2 {[%clk 0:02:58]}  h6 {[%clk 0:02:54]} 8. Nge2 {[%clk 0:02:57]}  Nd4 {[%clk 0:02:53]} 9. Nd1 {[%clk 0:02:54]}  Ne7 {[%clk 0:02:52]} 10. c3 {[%clk 0:02:53]}  Nxe2 {[%clk 0:02:52]} 11. Qxe2 {[%clk 0:02:53]}  O-O {[%clk 0:02:52]} 12. Qd2 {[%clk 0:02:53]}  Kh7 {[%clk 0:02:52]} 13. h4 {[%clk 0:02:52]}  f5 {[%clk 0:02:33]} 14. exf5 {[%clk 0:02:48]}  Nxf5 {[%clk 0:02:33]} 15. h5 {[%clk 0:02:28]}  g5 {[%clk 0:02:32]} 16. Be4 {[%clk 0:02:24]}  Kh8 {[%clk 0:02:25]} 17. d4 {[%clk 0:02:10]}  cxd4 {[%clk 0:02:15]} 18. Bxd4 {[%clk 0:02:10]}  Nxd4 {[%clk 0:02:01]} 19. cxd4 {[%clk 0:02:08]}  d5 {[%clk 0:01:54]} 20. Bc2 {[%clk 0:01:59]}  e5 {[%clk 0:01:54]} 21. dxe5 {[%clk 0:01:52]}  d4 {[%clk 0:01:53]} 22. f4 {[%clk 0:01:19]}  Qd5 {[%clk 0:01:43]} 23. Nf2 {[%clk 0:01:12]}  gxf4 {[%clk 0:01:36]} 24. gxf4 {[%clk 0:01:11]}  Bf5 {[%clk 0:01:03]} 25. Bb3 {[%clk 0:00:32]}  Qf3 {[%clk 0:00:59]} 26. Rd1 {[%clk 0:00:17]}  Rad8 {[%clk 0:00:57]} 27. Rh4 {[%clk 0:00:16]}  Qg2 {[%clk 0:00:54]} 28. Qe2 {[%clk 0:00:15]}  d3 {[%clk 0:00:48]} 29. Qf1 {[%clk 0:00:15]}  Qg3 {[%clk 0:00:46]} 30. Qh1 {[%clk 0:00:15]}  Qe3+ {[%clk 0:00:45]} 31. Kf1 {[%clk 0:00:14]}  Qe2+ {[%clk 0:00:44]} 32. Kg1 {[%clk 0:00:14]}  Rg8 {[%clk 0:00:35]} 33. Qh2 {[%clk 0:00:13]}  Bf6+ {[%clk 0:00:32]} 34. Bxg8 {[%clk 0:00:12]}  Rxg8+ {[%clk 0:00:32]} 35. Kh1 {[%clk 0:00:12]}  Be4+ {[%clk 0:00:27]} 36. Nxe4 {[%clk 0:00:10]}  Qxe4+ {[%clk 0:00:28]} 37. Qg2 {[%clk 0:00:08]}  Qxg2# {[%clk 0:00:27]} 0-1


[Site "https://www.chess.com"]

[Event "Titled Tuesday Blitz July 27 2021"]
[White "Nguyen Hong Nhung"]
[Black "Maly, Alexey"]
[WhiteFideId "12412201"]
[BlackFideId "14103184"]
[WhiteElo "1661"]
[BlackElo "2285"]
[Result "1-0"]
[Round "07"]
[TimeControl "180+1"]
[Date "2021.07.27"]
[WhiteClock "0:00:46"]
[BlackClock "0:00:16"]

1. e4 {[%clk 0:03:00]}  c6 {[%clk 0:03:00]} 2. d4 {[%clk 0:03:00]}  d5 {[%clk 0:03:00]} 3. f3 {[%clk 0:03:01]}  dxe4 {[%clk 0:03:00]} 4. fxe4 {[%clk 0:03:02]}  e5 {[%clk 0:03:01]} 5. Nf3 {[%clk 0:03:03]}  Bg4 {[%clk 0:03:01]} 6. Bc4 {[%clk 0:03:03]}  Nd7 {[%clk 0:03:01]} 7. O-O {[%clk 0:03:02]}  Ngf6 {[%clk 0:03:01]} 8. c3 {[%clk 0:03:03]}  b5 {[%clk 0:03:01]} 9. Bb3 {[%clk 0:03:01]}  Bd6 {[%clk 0:03:01]} 10. Bg5 {[%clk 0:03:01]}  Qc7 {[%clk 0:03:01]} 11. Nbd2 {[%clk 0:02:59]}  O-O {[%clk 0:03:01]} 12. Qe1 {[%clk 0:02:58]}  Bh5 {[%clk 0:03:01]} 13. Qh4 {[%clk 0:02:57]}  Rae8 {[%clk 0:03:00]} 14. Rae1 {[%clk 0:02:50]}  Bg6 {[%clk 0:03:01]} 15. Bxf6 {[%clk 0:02:48]}  Nxf6 {[%clk 0:03:00]} 16. Ng5 {[%clk 0:02:42]}  h6 {[%clk 0:02:57]} 17. Rxf6 {[%clk 0:02:27]}  hxg5 {[%clk 0:02:37]} 18. Qxg5 {[%clk 0:02:28]}  Be7 {[%clk 0:02:34]} 19. Qxg6 {[%clk 0:02:27]}  Bxf6 {[%clk 0:02:34]} 20. Rf1 {[%clk 0:02:24]}  Qe7 {[%clk 0:02:25]} 21. Rf5 {[%clk 0:02:12]}  Qe6 {[%clk 0:01:37]} 22. Bxe6 {[%clk 0:02:03]}  Rxe6 {[%clk 0:01:38]} 23. Qg4 {[%clk 0:01:59]}  exd4 {[%clk 0:01:35]} 24. cxd4 {[%clk 0:01:56]}  Bxd4+ {[%clk 0:01:33]} 25. Kh1 {[%clk 0:01:57]}  Bxb2 {[%clk 0:01:32]} 26. h4 {[%clk 0:01:53]}  Rfe8 {[%clk 0:01:30]} 27. Rf1 {[%clk 0:01:43]}  Bc3 {[%clk 0:01:25]} 28. Nf3 {[%clk 0:01:41]}  Rxe4 {[%clk 0:01:25]} 29. Qd7 {[%clk 0:01:41]}  Bf6 {[%clk 0:01:17]} 30. Qxc6 {[%clk 0:01:36]}  Bxh4 {[%clk 0:01:15]} 31. Nxh4 {[%clk 0:01:33]}  Rxh4+ {[%clk 0:01:16]} 32. Kg1 {[%clk 0:01:33]}  Rhe4 {[%clk 0:01:10]} 33. Qxb5 {[%clk 0:01:31]}  R4e6 {[%clk 0:01:10]} 34. a4 {[%clk 0:01:29]}  a6 {[%clk 0:01:08]} 35. Qb7 {[%clk 0:01:28]}  R8e7 {[%clk 0:01:06]} 36. Qc8+ {[%clk 0:01:28]}  Re8 {[%clk 0:01:04]} 37. Qc4 {[%clk 0:01:28]}  g6 {[%clk 0:00:59]} 38. Rd1 {[%clk 0:01:26]}  Re1+ {[%clk 0:00:57]} 39. Rxe1 {[%clk 0:01:26]}  Rxe1+ {[%clk 0:00:58]} 40. Kf2 {[%clk 0:01:27]}  Re6 {[%clk 0:00:55]} 41. a5 {[%clk 0:01:27]}  Kh7 {[%clk 0:00:51]} 42. Kf3 {[%clk 0:01:23]}  Rf6+ {[%clk 0:00:48]} 43. Ke4 {[%clk 0:01:21]}  Kg7 {[%clk 0:00:45]} 44. Qd4 {[%clk 0:01:17]}  g5 {[%clk 0:00:43]} 45. Kd5 {[%clk 0:01:14]}  Kg6 {[%clk 0:00:39]} 46. Kc5 {[%clk 0:01:08]}  Re6 {[%clk 0:00:37]} 47. Qd3+ {[%clk 0:01:02]}  Kg7 {[%clk 0:00:35]} 48. Qf5 {[%clk 0:00:59]}  Kf8 {[%clk 0:00:30]} 49. Qxg5 {[%clk 0:00:57]}  Ke8 {[%clk 0:00:31]} 50. Qg8+ {[%clk 0:00:53]}  Ke7 {[%clk 0:00:31]} 51. Qg5+ {[%clk 0:00:51]}  Ke8 {[%clk 0:00:30]} 52. Qd5 {[%clk 0:00:51]}  Ke7 {[%clk 0:00:29]} 53. g4 {[%clk 0:00:50]}  Rg6 {[%clk 0:00:27]} 54. g5 {[%clk 0:00:47]}  Kf8 {[%clk 0:00:25]} 55. Qf5 {[%clk 0:00:45]}  Re6 {[%clk 0:00:22]} 56. Kd5 {[%clk 0:00:41]}  Rg6 {[%clk 0:00:16]} 57. Qxg6 {[%clk 0:00:38]}  fxg6 {[%clk 0:00:16]} 58. Ke6 {[%clk 0:00:38]}  Kg7 {[%clk 0:00:13]} 59. Ke7 {[%clk 0:00:39]}  Kg8 {[%clk 0:00:10]} 60. Kf6 {[%clk 0:00:39]}  Kh7 {[%clk 0:00:11]} 61. Kf7 {[%clk 0:00:39]}  Kh8 {[%clk 0:00:09]} 62. Kxg6 {[%clk 0:00:38]}  Kg8 {[%clk 0:00:10]} 63. Kf6 {[%clk 0:00:39]}  Kh8 {[%clk 0:00:10]} 64. g6 {[%clk 0:00:39]}  Kg8 {[%clk 0:00:10]} 65. g7 {[%clk 0:00:39]}  Kh7 {[%clk 0:00:11]} 66. Kf7 {[%clk 0:00:40]}  Kh6 {[%clk 0:00:11]} 67. g8=Q {[%clk 0:00:41]}  Kh5 {[%clk 0:00:12]} 68. Qg6+ {[%clk 0:00:42]}  Kh4 {[%clk 0:00:12]} 69. Kf6 {[%clk 0:00:43]}  Kh3 {[%clk 0:00:13]} 70. Kf5 {[%clk 0:00:44]}  Kh2 {[%clk 0:00:14]} 71. Kf4 {[%clk 0:00:44]}  Kh1 {[%clk 0:00:15]} 72. Kf3 {[%clk 0:00:45]}  Kh2 {[%clk 0:00:16]} 73. Qg2# {[%clk 0:00:46]} 1-0


[Site "https://www.chess.com"]

[Event "Titled Tuesday Blitz July 27 2021"]
[White "Nugumanov, Bakhtiyar"]
[Black "Kobo, Ori"]
[WhiteFideId "13701797"]
[BlackFideId "2812320"]
[WhiteElo "2541"]
[BlackElo "2729"]
[Result "0-1"]
[Round "07"]
[TimeControl "180+1"]
[Date "2021.07.27"]
[WhiteClock "0:00:04"]
[BlackClock "0:00:05"]

1. e4 {[%clk 0:02:51]}  g6 {[%clk 0:02:59]} 2. d4 {[%clk 0:02:50]}  Bg7 {[%clk 0:02:59]} 3. Nc3 {[%clk 0:02:50]}  c6 {[%clk 0:02:59]} 4. Nf3 {[%clk 0:02:49]}  d5 {[%clk 0:02:59]} 5. h3 {[%clk 0:02:49]}  dxe4 {[%clk 0:02:54]} 6. Nxe4 {[%clk 0:02:48]}  Nf6 {[%clk 0:02:55]} 7. Nxf6+ {[%clk 0:02:46]}  exf6 {[%clk 0:02:56]} 8. Bc4 {[%clk 0:02:41]}  O-O {[%clk 0:02:57]} 9. O-O {[%clk 0:02:41]}  Na6 {[%clk 0:02:55]} 10. Re1 {[%clk 0:02:29]}  Nc7 {[%clk 0:02:55]} 11. Bb3 {[%clk 0:02:24]}  Be6 {[%clk 0:02:43]} 12. Bf4 {[%clk 0:02:19]}  Bxb3 {[%clk 0:02:35]} 13. axb3 {[%clk 0:02:18]}  Ne6 {[%clk 0:02:31]} 14. Bg3 {[%clk 0:02:17]}  Qd7 {[%clk 0:02:25]} 15. c3 {[%clk 0:02:13]}  Rfe8 {[%clk 0:02:25]} 16. Qc2 {[%clk 0:02:06]}  a6 {[%clk 0:02:24]} 17. Re2 {[%clk 0:02:05]}  Rad8 {[%clk 0:02:08]} 18. Rae1 {[%clk 0:02:04]}  Bf8 {[%clk 0:02:05]} 19. Nd2 {[%clk 0:02:03]}  f5 {[%clk 0:01:59]} 20. Nc4 {[%clk 0:01:47]}  f6 {[%clk 0:01:58]} 21. Bh2 {[%clk 0:01:29]}  Qf7 {[%clk 0:01:48]} 22. Na5 {[%clk 0:01:25]}  Ng5 {[%clk 0:01:25]} 23. h4 {[%clk 0:01:19]}  Ne6 {[%clk 0:01:21]} 24. Nxb7 {[%clk 0:01:17]}  Nxd4 {[%clk 0:01:12]} 25. cxd4 {[%clk 0:01:05]}  Rxe2 {[%clk 0:01:10]} 26. Qxe2 {[%clk 0:01:02]}  Qxb7 {[%clk 0:01:10]} 27. Qe6+ {[%clk 0:01:03]}  Kg7 {[%clk 0:01:02]} 28. Rc1 {[%clk 0:00:57]}  Rxd4 {[%clk 0:00:57]} 29. h5 {[%clk 0:00:51]}  Qd7 {[%clk 0:00:49]} 30. Qe2 {[%clk 0:00:28]}  Rd2 {[%clk 0:00:49]} 31. Qxa6 {[%clk 0:00:23]}  Bc5 {[%clk 0:00:36]} 32. h6+ {[%clk 0:00:21]}  Kf8 {[%clk 0:00:23]} 33. Qa8+ {[%clk 0:00:18]}  Kf7 {[%clk 0:00:23]} 34. Kh1 {[%clk 0:00:16]}  Bxf2 {[%clk 0:00:18]} 35. Qh8 {[%clk 0:00:16]}  Rd1+ {[%clk 0:00:18]} 36. Bg1 {[%clk 0:00:14]}  Rxc1 {[%clk 0:00:17]} 37. Qxh7+ {[%clk 0:00:12]}  Ke6 {[%clk 0:00:17]} 38. Qg8+ {[%clk 0:00:13]}  Kd6 {[%clk 0:00:10]} 39. h7 {[%clk 0:00:10]}  Rxg1+ {[%clk 0:00:08]} 40. Kh2 {[%clk 0:00:10]}  Kc7 {[%clk 0:00:05]} 41. h8=Q {[%clk 0:00:10]}  Qd6+ {[%clk 0:00:06]} 42. Kh3 {[%clk 0:00:04]}  Qg3# {[%clk 0:00:05]} 0-1


[Site "https://www.chess.com"]